fUST/lending_fUST_20260117
["ID","MTS","AMOUNT","RATE_DAILY","PERIOD"]
[402289138,1768649456576,-593.05,0.00016712,3]
[402289139,1768649456586,-500.0,0.00016712,3]
[402289140,1768649456595,-895.32,0.00016712,3]
[402289141,1768649456605,-482.47504826,0.00016712,3]
[402289142,1768649456615,-556.6,0.00016712,3]
[402289143,1768649456624,-500.0,0.00016712,3]
[402289144,1768649456634,-500.0,0.00016712,3]
[402289145,1768649456644,-592.12,0.00016712,3]
[402289146,1768649456655,-1170.72,0.00016712,3]
[402289147,1768649456664,-500.0,0.00016712,3]
[402289148,1768649456673,-500.0,0.00016712,3]
[402289149,1768649456682,-500.0,0.00016712,3]
[402289150,1768649456692,-500.0,0.00016712,3]
[402289151,1768649456701,-500.0,0.00016712,3]
[402289152,1768649456711,-500.0,0.00016712,3]
[402289153,1768649456721,-501.58,0.00016712,3]
[402289154,1768649456730,-797.95,0.00016712,3]
[402289155,1768649456739,-902.93,0.00016712,3]
[402289156,1768649456749,-1478.48,0.00016712,3]
[402289157,1768649456758,-931.1,0.00016712,3]
[402289158,1768649456771,-500.0,0.00016712,2]
[402289159,1768649456781,-500.0,0.00016712,3]
[402289160,1768649456790,-500.0,0.00016712,3]
[402289161,1768649456800,-465.90987905,0.00016712,3]
[402289162,1768649456810,-500.0,0.00016712,3]
[402289163,1768649456820,-500.0,0.00016712,3]
[402289164,1768649456829,-500.0,0.00016712,3]
[402289165,1768649456839,-500.0,0.00016712,3]
[402289166,1768649456851,-500.0,0.00016712,3]
[402289167,1768649456861,-887.98,0.00016712,3]
[402289168,1768649456870,-500.0,0.00016712,3]
[402289169,1768649456879,-500.0,0.00016712,3]
[402289170,1768649456889,-842.12,0.00016712,3]
[402289171,1768649456899,-500.0,0.00016712,3]
[402289172,1768649456909,-500.0,0.00016712,3]
[402289173,1768649456918,-1511.79,0.00016712,3]
[402289174,1768649456930,-500.0,0.00016712,3]
[402289175,1768649456939,-500.0,0.00016712,3]
[402289176,1768649456952,-500.0,0.00016712,3]
[402289177,1768649456962,-500.0,0.00016712,3]
[402289178,1768649456971,-500.0,0.00016712,3]
[402289179,1768649456981,-500.0,0.00016712,3]
[402289180,1768649456991,-500.0,0.00016712,3]
[402289181,1768649457000,-500.0,0.00016712,3]
[402289182,1768649457009,-745.23,0.00016712,3]
[402289183,1768649457019,-500.0,0.00016712,3]
[402289184,1768649457029,-500.0,0.00016712,3]
[402289185,1768649457038,-1200.0,0.00016712,2]
[402289186,1768649457047,-500.0,0.00016712,3]
[402289187,1768649457057,-500.0,0.00016712,3]
[402289188,1768649457067,-500.0,0.00016712,3]
[402289189,1768649457078,-562.19664467,0.00016712,3]
[402289190,1768649457087,-500.0,0.00016712,3]
[402289191,1768649457098,-500.0,0.00016712,3]
[402289192,1768649457108,-697.62,0.00016712,3]
[402289193,1768649457118,-500.0,0.00016712,3]
[402289194,1768649457127,-500.0,0.00016712,3]
[402289195,1768649457138,-618.2,0.00016712,3]
[402289196,1768649457148,-1774.68,0.00016712,3]
[402289197,1768649457157,-500.0,0.00016712,3]
[402289198,1768649457167,-942.63,0.00016712,3]
[402289199,1768649457176,-500.0,0.00016712,3]
[402289200,1768649457191,-500.0,0.00016712,3]
[402289201,1768649457200,-500.0,0.00016712,3]
[402289202,1768649457210,-500.0,0.00016712,3]
[402289203,1768649457223,-500.0,0.00016712,3]
[402289204,1768649457241,-1586.94,0.00016712,3]
[402289205,1768649457250,-500.0,0.00016712,3]
[402289206,1768649457260,-500.0,0.00016712,3]
[402289207,1768649457269,-500.0,0.00016712,3]
[402289208,1768649457279,-500.0,0.00016712,3]
[402289209,1768649457288,-540.84,0.00016712,3]
[402289210,1768649457298,-1084.84,0.00016712,3]
[402289211,1768649457308,-500.0,0.00016712,3]
[402289212,1768649457317,-500.0,0.00016712,3]
[402289213,1768649457327,-693.7,0.00016712,3]
[402289214,1768649457337,-1859.94,0.00016712,3]
[402289215,1768649457346,-500.0,0.00016712,3]
[402289216,1768649457355,-500.0,0.00016712,3]
[402289217,1768649457364,-500.0,0.00016712,3]
[402289218,1768649457374,-500.0,0.00016712,3]
[402289219,1768649457383,-500.0,0.00016712,3]
[402289220,1768649457393,-500.0,0.00016712,3]
[402289221,1768649457402,-500.0,0.00016712,3]
[402289222,1768649457412,-500.0,0.00016712,3]
[402289223,1768649457421,-500.0,0.00016712,3]
[402289224,1768649457430,-500.0,0.00016712,3]
[402289225,1768649457440,-782.75,0.00016712,3]
[402289226,1768649457449,-752.05,0.00016712,3]
[402289227,1768649457458,-500.0,0.00016712,3]
[402289228,1768649457468,-500.0,0.00016712,3]
[402289229,1768649457477,-500.0,0.00016712,3]
[402289230,1768649457486,-500.0,0.00016712,3]
[402289231,1768649457495,-775.14,0.00016712,3]
[402289232,1768649457505,-500.0,0.00016712,3]
[402289233,1768649457515,-500.0,0.00016712,3]
[402289234,1768649457524,-2140.55,0.00016712,3]
[402289235,1768649457533,-1600.91,0.00016712,3]
[402289236,1768649457543,-500.0,0.00016712,3]
[402289237,1768649457552,-500.0,0.00016712,3]
[402289238,1768649457562,-500.0,0.00016712,3]
[402289239,1768649457571,-500.0,0.00016712,3]
[402289240,1768649457580,-500.0,0.00016712,3]
[402289241,1768649457590,-500.0,0.00016712,3]
[402289242,1768649457600,-500.0,0.00016712,3]
[402289243,1768649457609,-500.0,0.00016712,3]
[402289244,1768649457619,-500.0,0.00016712,3]
[402289245,1768649457628,-540.2,0.00016712,3]
[402289246,1768649457637,-500.0,0.00016712,3]
[402289247,1768649457647,-500.0,0.00016712,3]
[402289248,1768649457658,-691.55,0.00016712,3]
[402289249,1768649457667,-500.0,0.00016712,3]
[402289250,1768649457677,-2007.96,0.00016712,3]
[402289251,1768649457687,-500.0,0.00016712,3]
[402289252,1768649457697,-835.27,0.00016712,3]
[402289253,1768649457706,-1472.9,0.00016712,3]
[402289254,1768649457716,-1210.81,0.00016712,3]
[402289255,1768649457725,-500.0,0.00016712,3]
[402289256,1768649457734,-604.57,0.00016712,3]
[402289257,1768649457744,-500.0,0.00016712,3]
[402289258,1768649457754,-500.0,0.00016712,3]
[402289259,1768649457763,-1776.82,0.00016712,3]
[402289260,1768649457777,-500.0,0.00016712,3]
[402289261,1768649457790,-500.0,0.00016712,3]
[402289262,1768649457800,-500.0,0.00016712,3]
[402289263,1768649457810,-582.22,0.00016712,3]
[402289264,1768649457820,-441.88906637,0.00016712,3]
[402289265,1768649457830,-1240.14,0.00016712,3]
[402289266,1768649457840,-500.0,0.00016712,3]
[402289267,1768649457850,-500.0,0.00016712,3]
[402289268,1768649457859,-884.93,0.00016712,3]
[402289269,1768649457869,-500.0,0.00016712,3]
[402289270,1768649457879,-628.44,0.00016712,3]
[402289271,1768649457888,-500.0,0.00016712,3]
[402289272,1768649457898,-529.79,0.00016712,3]
[402289273,1768649457907,-500.0,0.00016712,3]
[402289274,1768649457917,-500.0,0.00016712,3]
[402289275,1768649457926,-500.0,0.00016712,3]
[402289276,1768649457937,-500.0,0.00016712,3]
[402289277,1768649457946,-500.0,0.00016712,3]
[402289278,1768649457956,-500.0,0.00016712,3]
[402289279,1768649457966,-500.0,0.00016712,2]
[402289280,1768649457975,-500.0,0.00016712,3]
[402289281,1768649457985,-500.0,0.00016712,3]
[402289282,1768649457995,-511.03,0.00016712,3]
[402289283,1768649458005,-1076.17,0.00016712,3]
[402289284,1768649458014,-500.0,0.00016712,3]
[402289285,1768649458024,-1251.31,0.00016712,3]
[402289286,1768649458033,-993.75,0.00016712,3]
[402289287,1768649458042,-510.09347373,0.00016712,3]
[402289288,1768649458052,-500.0,0.00016712,3]
[402289289,1768649458061,-592.17,0.00016712,3]
[402289290,1768649458070,-500.0,0.00016712,3]
[402289291,1768649458079,-500.0,0.00016712,3]
[402289292,1768649458088,-1040.39,0.00016712,3]
[402289293,1768649458100,-1158.63,0.00016712,3]
[402289294,1768649458109,-500.0,0.00016712,3]
[402289295,1768649458120,-500.0,0.00016712,3]
[402289296,1768649458129,-1446.98,0.00016712,3]
[402289297,1768649458139,-500.0,0.00016712,3]
[402289298,1768649458149,-500.0,0.00016712,3]
[402289299,1768649458158,-500.0,0.00016712,3]
[402289300,1768649458168,-553.77,0.00016712,3]
[402289301,1768649458177,-1160.93,0.00016712,3]
[402289302,1768649458187,-789.43,0.00016712,3]
[402289303,1768649458197,-500.0,0.00016712,3]
[402289304,1768649458206,-781.61,0.00016712,3]
[402289305,1768649458216,-677.45,0.00016712,3]
[402289306,1768649458226,-1417.89,0.00016712,3]
[402289307,1768649458235,-500.0,0.00016712,3]
[402289308,1768649458244,-500.0,0.00016712,3]
[402289309,1768649458253,-206.61780172,0.00016712,3]
[402289310,1768649458262,-1042.85,0.00016712,3]
[402289311,1768649458271,-500.0,0.00016712,3]
[402289312,1768649458281,-509.58,0.00016712,3]
[402289313,1768649458291,-1329.23,0.00016712,3]
[402289314,1768649458302,-882.89,0.00016712,3]
[402289315,1768649458311,-784.38,0.00016712,3]
[402289316,1768649458320,-500.0,0.00016712,3]
[402289317,1768649458330,-952.33,0.00016712,3]
[402289318,1768649458340,-500.0,0.00016712,3]
[402289319,1768649458350,-606.30623582,0.00016712,3]
[402289320,1768649458359,-936.94,0.00016712,3]
[402289321,1768649458368,-500.0,0.00016712,3]
[402289322,1768649458377,-500.0,0.00016712,3]
[402289323,1768649458387,-1708.14,0.00016712,3]
[402289324,1768649458396,-500.0,0.00016712,3]
[402289325,1768649458405,-982.82,0.00016712,3]
[402289326,1768649458415,-500.0,0.00016712,3]
[402289327,1768649458424,-647.1,0.00016712,3]
[402289328,1768649458434,-593.22,0.00016712,3]
[402289329,1768649458444,-500.0,0.00016712,3]
[402289330,1768649458453,-550.51,0.00016712,3]
[402289331,1768649458463,-700.82,0.00016712,3]
[402289332,1768649458472,-500.0,0.00016712,3]
[402289333,1768649458483,-466.05554011,0.00016712,3]
[402289334,1768649458493,-500.0,0.00016712,3]
[402289335,1768649458576,-500.0,0.00016712,3]
[402289336,1768649458585,-500.0,0.00016712,3]
[402289337,1768649458595,-500.0,0.00016712,3]
[402289338,1768649458604,-500.0,0.00016712,3]
[402289339,1768649458614,-500.0,0.00016712,3]
[402289340,1768649458623,-500.0,0.00016712,3]
[402289341,1768649458632,-304.69534223,0.00016712,3]
[402289342,1768649458642,-500.0,0.00016712,3]
[402289343,1768649458652,-500.0,0.00016712,3]
[402289344,1768649458661,-500.0,0.00016712,3]
[402289345,1768649458670,-1436.34,0.00016712,3]
[402289346,1768649458679,-500.0,0.00016712,3]
[402289347,1768649458688,-500.0,0.00016712,3]
[402289348,1768649458698,-500.0,0.00016712,3]
[402289349,1768649458707,-588.13,0.00016712,3]
[402289350,1768649458717,-1686.51,0.00016712,3]
[402289351,1768649458727,-500.0,0.00016712,3]
[402289352,1768649458737,-500.0,0.00016712,3]
[402289353,1768649458746,-1458.01,0.00016712,3]
[402289354,1768649458755,-500.0,0.00016712,3]
[402289355,1768649458766,-500.0,0.00016712,3]
[402289356,1768649458777,-1003.45,0.00016712,3]
[402289357,1768649458787,-500.0,0.00016712,3]
[402289358,1768649458797,-2354.26,0.00016712,3]
[402289359,1768649458807,-500.0,0.00016712,3]
[402289360,1768649458816,-500.0,0.00016712,3]
[402289361,1768649458826,-1932.31,0.00016712,3]
[402289362,1768649458835,-1910.88,0.00016712,3]
[402289363,1768649458847,-904.86,0.00016712,3]
[402289364,1768649458856,-500.0,0.00016712,3]
[402289365,1768649458866,-500.0,0.00016712,3]
[402289366,1768649458875,-742.45,0.00016712,3]
[402289367,1768649458885,-1293.83,0.00016712,3]
[402289368,1768649458895,-500.0,0.00016712,3]
[402289369,1768649458905,-501.96,0.00016712,3]
[402289370,1768649458915,-500.0,0.00016712,3]
[402289371,1768649458924,-525.87912065,0.00016712,3]
[402289372,1768649458934,-1515.25,0.00016712,3]
[402289373,1768649458944,-500.0,0.00016712,3]
[402289374,1768649458953,-500.0,0.00016712,3]
[402289375,1768649458962,-500.0,0.00016712,3]
[402289376,1768649458972,-247.25068519,0.00016712,3]
[402289377,1768649458981,-500.0,0.00016712,3]
[402289378,1768649458991,-500.0,0.00016712,3]
[402289379,1768649459000,-771.05,0.00016712,3]
[402289380,1768649459010,-765.96,0.00016712,3]
[402289381,1768649459021,-500.0,0.00016712,3]
[402289382,1768649459030,-500.0,0.00016712,3]
[402289383,1768649459040,-1376.88,0.00016712,3]
[402289384,1768649459049,-500.0,0.00016712,3]
[402289385,1768649459059,-500.0,0.00016712,3]
[402289386,1768649459068,-500.0,0.00016712,3]
[402289387,1768649459077,-523.35,0.00016712,3]
[402289388,1768649459087,-500.0,0.00016712,3]
[402289389,1768649459096,-506.44158247,0.00016712,3]
[402289390,1768649459106,-500.0,0.00016712,3]
[402289391,1768649459115,-500.0,0.00016712,3]
[402289392,1768649459124,-1132.82,0.00016712,3]
[402289393,1768649459133,-500.0,0.00016712,3]
[402289394,1768649459143,-1546.28,0.00016712,3]
[402289395,1768649459152,-1000.0,0.00016712,2]
[402289396,1768649459162,-500.0,0.00016712,3]
[402289397,1768649459171,-500.0,0.00016712,3]
[402289398,1768649459180,-500.0,0.00016712,3]
[402289399,1768649459189,-500.0,0.00016712,3]
[402289400,1768649459199,-500.0,0.00016712,3]
[402289401,1768649459208,-563.8,0.00016712,3]
[402289402,1768649459217,-811.88,0.00016712,3]
[402289403,1768649459227,-2590.78,0.00016712,3]
[402289404,1768649459237,-500.0,0.00016712,3]
[402289405,1768649459247,-2047.3,0.00016712,3]
[402289406,1768649459256,-1579.55,0.00016712,3]
[402289407,1768649459266,-500.0,0.00016712,3]
[402289408,1768649459276,-500.0,0.00016712,3]
[402289409,1768649459287,-500.0,0.00016712,3]
[402289410,1768649459296,-246.89631936,0.00016712,3]
[402289411,1768649459306,-500.0,0.00016712,3]
[402289412,1768649459315,-500.0,0.00016712,3]
[402289413,1768649459325,-500.0,0.00016712,3]
[402289414,1768649459334,-500.0,0.00016712,3]
[402289415,1768649459344,-1222.94,0.00016712,3]
[402289416,1768649459354,-500.0,0.00016712,3]
[402289417,1768649459363,-500.0,0.00016712,3]
[402289418,1768649459373,-500.0,0.00016712,3]
[402289419,1768649459382,-758.74,0.00016712,3]
[402289420,1768649459391,-500.0,0.00016712,3]
[402289421,1768649459402,-500.0,0.00016712,3]
[402289422,1768649459412,-500.0,0.00016712,3]
[402289423,1768649459422,-500.0,0.00016712,3]
[402289424,1768649459432,-500.0,0.00016712,3]
[402289425,1768649459441,-1366.17,0.00016712,3]
[402289426,1768649459451,-500.0,0.00016712,3]
[402289427,1768649459460,-500.0,0.00016712,3]
[402289428,1768649459470,-694.6,0.00016712,3]
[402289429,1768649459481,-817.66,0.00016712,3]
[402289430,1768649459490,-500.0,0.00016712,3]
[402289431,1768649459500,-1832.06,0.00016712,3]
[402289432,1768649459511,-593.12,0.00016712,3]
[402289433,1768649459521,-535.22,0.00016712,3]
[402289434,1768649459532,-500.0,0.00016712,3]
[402289435,1768649459542,-592.02,0.00016712,3]
[402289436,1768649459554,-1387.56,0.00016712,3]
[402289437,1768649459565,-694.92,0.00016712,3]
[402289438,1768649459574,-14952.36,0.00016712,3]
[402289439,1768649459584,-3630.43,0.00016712,3]
[402289440,1768649459594,-577.36,0.00016712,3]
[402289441,1768649459604,-500.0,0.00016712,3]
[402289442,1768649459614,-1054.42,0.00016712,3]
[402289443,1768649459624,-500.0,0.00016712,3]
[402289444,1768649459633,-588.41,0.00016712,3]
[402289445,1768649459643,-500.0,0.00016712,3]
[402289446,1768649459653,-272.75784748,0.00016712,3]
[402289447,1768649459663,-500.0,0.00016712,3]
[402289448,1768649459673,-500.0,0.00016712,3]
[402289449,1768649459682,-500.0,0.00016712,3]
[402289450,1768649459692,-1391.15,0.00016712,3]
[402289451,1768649459702,-1048.64,0.00016712,3]
[402289452,1768649459711,-1108.81,0.00016712,3]
[402289453,1768649459721,-626.22,0.00016712,3]
[402289454,1768649459731,-500.0,0.00016712,3]
[402289455,1768649459741,-606.76,0.00016712,3]
[402289456,1768649459750,-500.0,0.00016712,3]
[402289457,1768649459760,-799.6,0.00016712,3]
[402289458,1768649459772,-500.0,0.00016712,3]
[402289459,1768649459782,-1462.53,0.00016712,3]
[402289460,1768649459793,-929.98,0.00016712,3]
[402289461,1768649459804,-1638.57,0.00016712,3]
[402289462,1768649459812,-500.0,0.00016712,3]
[402289463,1768649459821,-500.0,0.00016712,3]
[402289464,1768649459830,-671.14,0.00016712,3]
[402289465,1768649459840,-500.0,0.00016712,3]
[402289466,1768649459849,-1056.64,0.00016712,3]
[402289467,1768649459858,-500.0,0.00016712,3]
[402289468,1768649459868,-500.0,0.00016712,3]
[402289469,1768649459877,-980.65,0.00016712,3]
[402289470,1768649459886,-500.0,0.00016712,3]
[402289471,1768649459896,-500.0,0.00016712,3]
[402289472,1768649459906,-1813.35,0.00016712,3]
[402289473,1768649459915,-500.0,0.00016712,3]
[402289474,1768649459924,-1240.51,0.00016712,3]
[402289475,1768649459933,-1353.35,0.00016712,3]
[402289476,1768649459942,-500.0,0.00016712,3]
[402289477,1768649459952,-500.0,0.00016712,3]
[402289478,1768649459962,-500.0,0.00016712,3]
[402289479,1768649459971,-1645.77,0.00016712,3]
[402289480,1768649459980,-892.73,0.00016712,3]
[402289481,1768649459988,-500.0,0.00016712,3]
[402289482,1768649459998,-2044.1,0.00016712,3]
[402289483,1768649460008,-692.82,0.00016712,3]
[402289484,1768649460017,-500.0,0.00016712,3]
[402289485,1768649460027,-500.0,0.00016712,3]
[402289486,1768649460037,-699.9,0.00016712,3]
[402289487,1768649460047,-574.969696,0.00016712,3]
[402289488,1768649460057,-500.0,0.00016712,3]
[402289489,1768649460066,-500.0,0.00016712,3]
[402289490,1768649460075,-568.79,0.00016712,3]
[402289491,1768649460085,-541.31799653,0.00016712,3]
[402289492,1768649460096,-700.19,0.00016712,3]
[402289493,1768649460106,-500.0,0.00016712,3]
[402289494,1768649460116,-500.0,0.00016712,3]
[402289495,1768649460127,-939.73,0.00016712,3]
[402289496,1768649460137,-216.1398381,0.00016712,3]
[402289497,1768649460147,-500.0,0.00016712,3]
[402289498,1768649460157,-1081.34,0.00016712,3]
[402289499,1768649460167,-500.0,0.00016712,3]
[402289500,1768649460176,-500.0,0.00016712,3]
[402289501,1768649460186,-500.0,0.00016712,3]
[402289502,1768649460196,-1177.76,0.00016712,3]
[402289503,1768649460206,-500.0,0.00016712,3]
[402289504,1768649460218,-611.38,0.00016712,3]
[402289505,1768649460229,-500.0,0.00016712,3]
[402289506,1768649460240,-500.0,0.00016712,3]
[402289507,1768649460250,-500.0,0.00016712,3]
[402289508,1768649460260,-913.11,0.00016712,3]
[402289509,1768649460271,-500.0,0.00016712,3]
[402289510,1768649460281,-500.0,0.00016712,3]
[402289511,1768649460291,-624.31598401,0.00016712,3]
[402289512,1768649460301,-1044.14,0.00016712,3]
[402289513,1768649460310,-500.0,0.00016712,3]
[402289514,1768649460320,-500.0,0.00016712,3]
[402289515,1768649460329,-500.0,0.00016712,3]
[402289516,1768649460339,-1326.69,0.00016712,3]
[402289517,1768649460349,-500.0,0.00016712,3]
[402289518,1768649460359,-500.0,0.00016712,3]
[402289519,1768649460370,-500.0,0.00016712,3]
[402289520,1768649460380,-1255.88,0.00016712,3]
[402289521,1768649460390,-500.0,0.00016712,3]
[402289522,1768649460400,-500.0,0.00016712,3]
[402289523,1768649460410,-544.42342876,0.00016712,3]
[402289524,1768649460421,-500.0,0.00016712,3]
[402289525,1768649460432,-500.0,0.00016712,3]
[402289526,1768649460442,-2815.19,0.00016712,3]
[402289527,1768649460454,-501.51,0.00016712,3]
[402289528,1768649460464,-1106.71,0.00016712,3]
[402289529,1768649460474,-500.0,0.00016712,3]
[402289530,1768649460484,-500.0,0.00016712,3]
[402289531,1768649460495,-1559.59,0.00016712,3]
[402289532,1768649460505,-567.25,0.00016712,3]
[402289533,1768649460515,-1098.82,0.00016712,3]
[402289534,1768649460526,-503.22,0.00016712,3]
[402289535,1768649460537,-500.0,0.00016712,3]
[402289536,1768649460547,-863.18,0.00016712,3]
[402289537,1768649460557,-197.65009563,0.00016712,3]
[402289538,1768649460566,-1622.28,0.00016712,3]
[402289539,1768649460576,-500.0,0.00016712,3]
[402289540,1768649460585,-500.0,0.00016712,3]
[402289541,1768649460595,-500.0,0.00016712,3]
[402289542,1768649460605,-500.0,0.00016712,3]
[402289543,1768649460615,-500.0,0.00016712,3]
[402289544,1768649460626,-500.0,0.00016712,3]
[402289545,1768649460636,-500.0,0.00016712,3]
[402289546,1768649460647,-500.0,0.00016712,3]
[402289547,1768649460657,-1431.76,0.00016712,3]
[402289548,1768649460666,-8441.37,0.00016712,3]
[402289549,1768649460676,-500.0,0.00016712,3]
[402289550,1768649460685,-500.0,0.00016712,3]
[402289551,1768649460695,-500.0,0.00016712,3]
[402289552,1768649460705,-500.0,0.00016712,3]
[402289553,1768649460714,-953.59,0.00016712,3]
[402289554,1768649460725,-500.0,0.00016712,3]
[402289555,1768649460735,-500.0,0.00016712,3]
[402289556,1768649460747,-500.0,0.00016712,3]
[402289557,1768649460759,-1046.6,0.00016712,3]
[402289558,1768649460772,-2677.48,0.00016712,3]
[402289559,1768649460783,-500.0,0.00016712,3]
[402289560,1768649460794,-500.0,0.00016712,3]
[402289561,1768649460804,-500.0,0.00016712,3]
[402289562,1768649460816,-722.98,0.00016712,3]
[402289563,1768649460829,-523.8,0.00016712,3]
[402289564,1768649460839,-500.0,0.00016712,3]
[402289565,1768649460851,-500.0,0.00016712,3]
[402289566,1768649460861,-500.0,0.00016712,3]
[402289567,1768649460872,-1864.45,0.00016712,3]
[402289568,1768649460882,-980.47,0.00016712,3]
[402289569,1768649460893,-638.34,0.00016712,3]
[402289570,1768649460904,-349.90564396,0.00016712,3]
[402289571,1768649460914,-500.0,0.00016712,3]
[402289572,1768649460924,-692.94,0.00016712,3]
[402289573,1768649460935,-500.0,0.00016712,3]
[402289574,1768649460945,-500.0,0.00016712,3]
[402289575,1768649460955,-500.0,0.00016712,3]
[402289576,1768649460965,-822.95,0.00016712,3]
[402289577,1768649460975,-500.0,0.00016712,3]
[402289578,1768649460985,-500.0,0.00016712,3]
[402289579,1768649460996,-1239.92,0.00016712,3]
[402289580,1768649461007,-500.0,0.00016712,3]
[402289581,1768649461018,-616.40548762,0.00016712,3]
[402289582,1768649461030,-500.0,0.00016712,3]
[402289583,1768649461041,-500.0,0.00016712,3]
[402289584,1768649461052,-1628.03,0.00016712,3]
[402289585,1768649461063,-500.0,0.00016712,3]
[402289586,1768649461074,-604.11,0.00016712,3]
[402289587,1768649461084,-645.09,0.00016712,3]
[402289588,1768649461095,-500.0,0.00016712,3]
[402289589,1768649461105,-772.16,0.00016712,3]
[402289590,1768649461116,-500.0,0.00016712,3]
[402289591,1768649461127,-500.0,0.00016712,3]
[402289592,1768649461139,-2039.45,0.00016712,3]
[402289593,1768649461150,-500.0,0.00016712,3]
[402289594,1768649461161,-500.0,0.00016712,3]
[402289595,1768649461172,-500.0,0.00016712,3]
[402289596,1768649461182,-500.0,0.00016712,3]
[402289597,1768649461193,-500.0,0.00016712,3]
[402289598,1768649461203,-500.0,0.00016712,3]
[402289599,1768649461213,-782.18,0.00016712,3]
[402289600,1768649461223,-693.9,0.00016712,3]
[402289601,1768649461234,-500.0,0.00016712,3]
[402289602,1768649461245,-508.96,0.00016712,3]
[402289603,1768649461258,-875.55,0.00016712,3]
[402289604,1768649461268,-500.0,0.00016712,3]
[402289605,1768649461279,-500.0,0.00016712,3]
[402289606,1768649461291,-500.0,0.00016712,3]
[402289607,1768649461304,-500.0,0.00016712,3]
[402289608,1768649461316,-1112.08,0.00016712,3]
[402289609,1768649461327,-1075.34,0.00016712,3]
[402289610,1768649461337,-500.0,0.00016712,3]
[402289611,1768649461347,-1330.27,0.00016712,3]
[402289612,1768649461357,-500.0,0.00016712,3]
[402289613,1768649461368,-500.0,0.00016712,3]
[402289614,1768649461378,-500.0,0.00016712,3]
[402289615,1768649461389,-784.27,0.00016712,3]
[402289616,1768649461399,-500.0,0.00016712,3]
[402289617,1768649461408,-497.40170951,0.00016712,3]
[402289618,1768649461418,-1439.17,0.00016712,3]
[402289619,1768649461428,-785.13,0.00016712,3]
[402289620,1768649461438,-500.0,0.00016712,3]
[402289621,1768649461448,-1777.27,0.00016712,3]
[402289622,1768649461458,-508.15,0.00016712,3]
[402289623,1768649461468,-395.32581344,0.00016712,3]
[402289624,1768649461479,-578.09,0.00016712,3]
[402289625,1768649461490,-500.0,0.00016712,3]
[402289626,1768649461501,-500.0,0.00016712,3]
[402289627,1768649461511,-500.0,0.00016712,3]
[402289628,1768649461522,-976.59,0.00016712,3]
[402289629,1768649461534,-500.0,0.00016712,3]
[402289630,1768649461545,-2433.28,0.00016712,3]
[402289631,1768649461557,-500.0,0.00016712,3]
[402289632,1768649461568,-500.0,0.00016712,3]
[402289633,1768649461579,-506.89,0.00016712,3]
[402289634,1768649461589,-564.35,0.00016712,3]
[402289635,1768649461602,-500.0,0.00016712,3]
[402289636,1768649461613,-500.0,0.00016712,3]
[402289637,1768649461625,-500.0,0.00016712,3]